fUST/lending_fUST_20240310
["ID","MTS","AMOUNT","RATE_DAILY","PERIOD"]
[318104133,1710073848543,-500.0,0.00022995,2]
[318104134,1710073848552,-500.0,0.00022995,2]
[318104135,1710073848561,-500.0,0.00022995,2]
[318104136,1710073848571,-500.0,0.00022995,2]
[318104137,1710073848582,-501.91829677,0.00022995,2]
[318104138,1710073848591,-621.49712594,0.00022995,2]
[318104139,1710073848601,-503.47675908,0.00022995,2]
[318104140,1710073848610,-500.0,0.00022995,2]
[318104141,1710073848619,-217.666633,0.00022995,2]
[318104142,1710073848628,-500.0,0.00022995,2]
[318104143,1710073848637,-500.0,0.00022995,2]
[318104144,1710073848646,-500.0,0.00022995,2]
[318104145,1710073848656,-973.54,0.00022995,2]
[318104146,1710073848666,-500.0,0.00022995,2]
[318104147,1710073848676,-218.62790587,0.00022995,2]
[318104148,1710073848686,-3427.3,0.00022995,2]
[318104149,1710073848696,-500.0,0.00022995,2]
[318104150,1710073848706,-500.0,0.00022995,2]
[318104151,1710073848716,-568.8535581,0.00022995,2]
[318104152,1710073848726,-500.0,0.00022995,2]
[318104153,1710073848735,-500.0,0.00022996,2]
[318104154,1710073848745,-500.0,0.00022996,2]
[318104155,1710073848754,-500.0,0.00022996,2]
[318104156,1710073848764,-2020.54,0.00022997,2]
[318104157,1710073848775,-2020.54,0.00022997,2]
[318104158,1710073848784,-2020.54,0.00022997,2]
[318104159,1710073848794,-2020.54,0.00022997,2]
[318104160,1710073848805,-1547.94929742,0.00022997,2]
[318104161,1710073848932,-366.7395042,0.00022898,2]
[318104162,1710073848944,-736.0304958,0.00022898,2]
[318104163,1710073848954,-472.59070258,0.00022997,2]
[318104164,1710073848963,-2020.54,0.00022997,2]
[318104165,1710073848971,-871.17,0.00022997,2]
[318104166,1710073848980,-871.17,0.00022997,2]
[318104167,1710073848989,-871.17,0.00022997,2]
[318104168,1710073848998,-871.17,0.00022997,2]
[318104169,1710073849008,-500.0,0.00022997,2]
[318104170,1710073849016,-500.0,0.00022997,2]
[318104171,1710073849026,-871.17,0.00022997,2]
[318104172,1710073849035,-871.17,0.00022997,2]
[318104173,1710073849043,-500.0,0.00022997,2]
[318104174,1710073849054,-500.0,0.00022997,2]
[318104175,1710073849063,-500.0,0.00022997,2]
[318104176,1710073849073,-500.0,0.00022997,2]
[318104177,1710073849084,-322.95237405,0.00022997,2]
[318104178,1710073849098,-3655.23011394,0.00022997,2]
[318104179,1710073849107,-941.57697497,0.00022997,2]
[318104181,1710074131276,2224.81020891,0.00018512,5]
[318104182,1710074382806,2224.81020891,0.00018999,5]
[318104364,1710075038838,-5.82156162,0.00018473,2]
[318104365,1710075038859,-274.72686329,0.00018473,2]
[318104366,1710075038873,-188.47150508,0.00018473,2]
[318104367,1710075038884,-155.05426899,0.00018474,2]
[318104368,1710075038894,-146.8082293,0.00018514,2]
[318104458,1710075044029,-1029.999999,0.00018514,2]
[318104460,1710075044097,-5598.89414055,0.00018514,2]
[318104461,1710075044107,-216.93448016,0.00018514,2]
[318104462,1710075044117,-336.69909941,0.00019,2]
[318104464,1710075044127,-159.483103,0.00019828,2]
[318104466,1710075044136,-754.682382,0.00020883,2]
[318104468,1710075044145,-500.0,0.00020999,2]
[318104470,1710075044155,-339.74955264,0.00020999,2]
[318104471,1710075044164,-3599.19003033,0.00021,4]
[318104613,1710076232835,-155.09305583,0.0001877,2]
[318104615,1710076232846,-138.22654455,0.00018771,2]
[318104616,1710076232894,-142.32188036,0.00018771,2]
[318104617,1710076232904,-362.95452614,0.00018772,2]
[318104618,1710076232914,-401.95127139,0.000189,2]
[318104619,1710076232923,-336.69909941,0.00019,2]
[318104620,1710076232933,-214.757429,0.00019375,2]
[318104621,1710076232942,-682.55292822,0.00020499,2]
[318104622,1710076232951,-2281.50823732,0.000205,5]
[318104623,1710076232960,-1720.38961423,0.000205,2]
[318104624,1710076232969,-153.0,0.0002063,2]
[318104625,1710076232978,-153.0,0.0002063,2]
[318104626,1710076232987,-201.004339,0.00020678,2]
[318104627,1710076232996,-500.0,0.00020999,2]
[318104628,1710076233005,-500.0,0.00020999,2]
[318104629,1710076233014,-500.0,0.00020999,2]
[318104630,1710076233024,-451.16897003,0.00020999,2]
[318104631,1710076233033,-3656.0535059,0.00021,4]
[318104672,1710076238658,-280.54842491,0.00018769,2]
[318104674,1710076238667,-426.59154775,0.000189,2]
[318104676,1710076238676,-266.95500821,0.00021,4]
[318104882,1710076243622,-6705.57383746,0.00021,4]
[318104883,1710076243635,-872.67904065,0.00021,4]
[318104884,1710076243647,-1333.67007164,0.00021,4]
[318104907,1710076248460,-201.004339,0.0002063,2]
[318104908,1710076248470,-1464.887661,0.00021,4]
[318104909,1710076248522,-36865.06778106,0.00021,4]
[318104991,1710077432155,-280.54842491,0.00018899,2]
[318104993,1710077432166,-284.39436516,0.000189,2]
[318104995,1710077432175,-336.69909941,0.00019,2]
[318104997,1710077432185,-698.6274768,0.00019064,2]
[318104999,1710077432194,-250.0,0.00019126,2]
[318105001,1710077432203,-175.662113,0.00019178,2]
[318105003,1710077432212,-190.257329,0.00019193,2]
[318105005,1710077432222,-281.3643571,0.00019194,2]
[318105008,1710077432232,-402.4886395,0.00019209,2]
[318105010,1710077432241,-153.0,0.00020334,2]
[318105011,1710077432250,-201.004339,0.00020356,2]
[318105012,1710077432259,-201.004339,0.000204,2]
[318105013,1710077432268,-201.004339,0.000204,2]
[318105014,1710077432277,-201.004339,0.000204,2]
[318105015,1710077432286,-153.0,0.000204,2]
[318105016,1710077432295,-153.0,0.000204,2]
[318105017,1710077432304,-306.0,0.00020434,2]
[318105018,1710077432313,-153.0,0.00020441,2]
[318105019,1710077432323,-153.0,0.00020441,2]
[318105020,1710077432332,-153.0,0.00020456,2]
[318105021,1710077432340,-359.3431744,0.00020534,2]
[318105022,1710077432349,-201.004339,0.00020578,2]
[318105023,1710077432358,-200.1210209,0.00020578,2]
[318105024,1710077432367,-153.0,0.0002063,2]
[318105025,1710077432376,-306.0,0.0002063,2]
[318105026,1710077432385,-153.0,0.0002063,2]
[318105027,1710077432394,-153.0,0.0002063,2]
[318105028,1710077432403,-153.0,0.0002063,2]
[318105029,1710077432412,-153.0,0.0002063,2]
[318105030,1710077432421,-153.0,0.0002063,2]
[318105031,1710077432432,-153.0,0.0002063,2]
[318105032,1710077432441,-153.0,0.0002063,2]
[318105033,1710077432450,-153.0,0.0002063,2]
[318105034,1710077432459,-153.0,0.0002063,2]
[318105035,1710077432468,-153.0,0.0002063,2]
[318105036,1710077432477,-201.004339,0.0002063,2]
[318105037,1710077432486,-153.0,0.0002063,2]
[318105038,1710077432495,-201.004339,0.0002063,2]
[318105039,1710077432503,-153.0,0.0002063,2]
[318105040,1710077432512,-153.0,0.0002063,2]
[318105041,1710077432521,-153.0,0.0002063,2]
[318105042,1710077432530,-201.004339,0.0002063,2]
[318105043,1710077432539,-153.0,0.0002063,2]
[318105044,1710077432547,-153.0,0.0002063,2]
[318105045,1710077432556,-153.0,0.0002063,2]
[318105046,1710077432565,-201.004339,0.0002063,2]
[318105047,1710077432574,-153.0,0.0002063,2]
[318105048,1710077432583,-153.0,0.000208,2]
[318105049,1710077432592,-153.0,0.00020904,2]
[318105050,1710077432600,-153.0,0.00020904,2]
[318105051,1710077432609,-153.0,0.00020904,2]
[318105052,1710077432618,-153.0,0.00020904,2]
[318105053,1710077432627,-153.0,0.00020904,2]
[318105054,1710077432636,-244.80536684,0.0002099,7]
[318105055,1710077432644,-25872.66125772,0.00021,4]
[318105056,1710077432656,-999.14549304,0.00021,4]
[318105057,1710077432667,-2457.44489479,0.00021,4]
[318105058,1710077432680,-270.33906,0.00021,4]
[318105208,1710077439993,-2564.21887094,0.00021,4]
[318105209,1710077440003,-1109.72164637,0.00021,2]
[318105210,1710077440012,-990.05665748,0.00021,2]
[318105211,1710077440021,-504.35740092,0.00021,7]
[318105213,1710077440030,-10681.28820219,0.00021,2]
[318105214,1710077440042,-5263.32626111,0.00021,2]
[318105215,1710077440051,-155.09305583,0.00021,2]
[318105216,1710077440060,-153.0,0.00021,2]
[318105217,1710077440071,-153.0,0.00021,2]
[318105218,1710077440081,-153.0,0.00021,2]
[318105219,1710077440090,-153.0,0.00021,2]
[318105220,1710077440099,-153.0,0.00021156,2]
[318105221,1710077440193,-153.0,0.00021356,2]
[318105222,1710077440205,-201.004339,0.00021452,2]
[318105223,1710077440215,-201.004339,0.00021452,2]
[318105224,1710077440224,-153.0,0.00021452,2]
[318105225,1710077440233,-78.57200506,0.00021452,2]
[318105353,1710077442953,-74.42799494,0.00021452,2]
[318105354,1710077442963,-153.0,0.00021452,2]
[318105355,1710077442972,-65.83720882,0.00021452,2]
[318105356,1710077443009,-135.16713018,0.00021452,2]
[318105357,1710077443018,-153.0,0.00021452,2]
[318105358,1710077443028,-153.0,0.00021452,2]
[318105359,1710077443038,-153.0,0.00021452,2]
[318105360,1710077443048,-532.1577525,0.00021452,2]
[318105361,1710077443058,-153.0,0.00021452,2]
[318105362,1710077443067,-246.9619675,0.00021452,2]
[318105363,1710077443076,-266.6934959,0.00021918,2]
[318105364,1710077443089,-2005.82107727,0.00022,2]
[318105365,1710077443098,-1129.21179302,0.00022,5]
[318105366,1710077443108,-414.0,0.00022,2]
[318105367,1710077443117,-197.0,0.00022,2]
[318105368,1710077443127,-1668.88735626,0.00022,2]
[318105369,1710077443137,-8247.0923253,0.00022,2]
[318105370,1710077443147,-327.45198075,0.00022169,2]
[318105371,1710077443157,-875.78225158,0.00022179,2]
[318105372,1710077443168,-414.0,0.00022192,2]
[318105373,1710077443179,-1000.0,0.000225,2]
[318105374,1710077443190,-585.35069101,0.00022636,2]
[318105375,1710077443199,-41988.19770381,0.00022637,2]
[318105429,1710078028556,-1000000.0,0.0002481,60]
[318105430,1710078032655,-1000000.0,0.0002481,60]
[318105431,1710078059101,-500.0,0.00024815,120]
[318105432,1710078059127,-6379.45928606,0.00024815,120]
[318105433,1710078059151,-16753.12652284,0.00024815,120]
[318105434,1710078059175,-5205.3970909,0.00024815,120]
[318105435,1710078059200,-2000.0,0.00024815,120]
[318105436,1710078059225,-6180.72638448,0.00024815,120]
[318105437,1710078059249,-2505.73813738,0.00024815,120]
[318105438,1710078059277,-120926.44959475,0.00024815,120]
[318105439,1710078059300,-485478.0,0.00024815,120]
[318105440,1710078059325,-195.75761449,0.00024815,120]
[318105441,1710078059348,-647.50076271,0.00024815,120]
[318105442,1710078059370,-19666.0,0.00024815,120]
[318105475,1710078632168,-280.54842491,0.00018847,2]
[318105477,1710078632178,-3498.93796908,0.00018847,2]
[318105478,1710078632189,-1951.55607231,0.00018848,2]
[318105480,1710078632199,-188.47150508,0.00018849,2]
[318105482,1710078632209,-155.13030946,0.00018849,2]
[318105484,1710078632219,-178.449475,0.00019208,2]
[318105485,1710078632228,-281.845514,0.00019617,2]
[318105487,1710078632238,-431.8829026,0.00019837,4]
[318105489,1710078632247,-153.0,0.000207,2]
[318105490,1710078632257,-153.0,0.000207,2]
[318105492,1710078632266,-153.0,0.000207,2]
[318105494,1710078632275,-249.265329,0.00021017,2]
[318105495,1710078632285,-178.449475,0.00021826,2]
[318105497,1710078632295,-673.33924173,0.00021847,2]
[318105499,1710078632304,-361.0,0.00022,2]
[318105500,1710078632314,-327.45198075,0.00022191,2]
[318105502,1710078632324,-361.0,0.00022192,2]
[318105504,1710078632333,-171.10687998,0.0002241,2]
[318105505,1710078632342,-199.909,0.000225,2]
[318105507,1710078632351,-47656.7894357,0.00022637,2]
[318105508,1710078632360,-5497.66880551,0.00022637,2]
[318105510,1710078632370,-16991.49209775,0.00022639,2]
[318105512,1710078632393,-8247.0923253,0.00022,2]
[318105513,1710078632403,-9620.85481419,0.00022639,2]
[318105514,1710078632412,-260.51659866,0.00022715,2]
[318105515,1710078632421,-3447.99855,0.00022723,2]
[318105516,1710078632433,-160.19387848,0.00022737,2]
[318105517,1710078632445,-250.86458186,0.00022738,2]
[318105518,1710078632454,-4183.40187922,0.00022739,2]
[318105519,1710078632464,-500.0,0.00022739,2]
[318105520,1710078632474,-500.0,0.00022739,2]
[318105521,1710078632483,-500.0,0.00022739,2]
[318105523,1710078632492,-500.0,0.00022739,2]
[318105524,1710078632503,-500.0,0.00022739,2]
[318105526,1710078632513,-500.0,0.00022739,2]
[318105527,1710078632522,-500.0,0.00022739,2]
[318105528,1710078632531,-500.0,0.00022739,2]
[318105529,1710078632540,-413.09895582,0.00022739,2]
[318105530,1710078632550,-500.92220479,0.00022739,2]
[318105532,1710078632560,-500.0,0.00022739,2]
[318105533,1710078632569,-500.0,0.00022739,2]
[318105534,1710078632578,-500.0,0.00022739,2]
[318105535,1710078632588,-500.0,0.00022739,2]
[318105537,1710078632597,-500.0,0.00022739,2]
[318105539,1710078632607,-500.0,0.00022739,2]
[318105540,1710078632616,-500.0,0.00022739,2]
[318105542,1710078632626,-500.0,0.00022739,2]
[318105544,1710078632635,-500.0,0.00022739,2]
[318105545,1710078632644,-500.0,0.00022739,2]
[318105547,1710078632654,-500.0,0.00022739,2]
[318105549,1710078632663,-500.0,0.00022739,2]
[318105551,1710078632673,-500.0,0.00022739,2]
[318105552,1710078632683,-500.0,0.00022739,2]
[318105554,1710078632694,-500.0,0.00022739,2]
[318105556,1710078632704,-500.0,0.00022739,2]
[318105557,1710078632713,-162.49535569,0.00022739,2]
[318105559,1710078632724,-500.0,0.00022739,2]
[318105561,1710078632734,-500.0,0.00022739,2]
[318105562,1710078632743,-500.0,0.00022739,2]
[318105564,1710078632753,-500.0,0.00022739,2]
[318105566,1710078632762,-500.0,0.00022739,2]
[318105568,1710078632772,-500.0,0.00022739,2]
[318105569,1710078632782,-397.15789677,0.00022739,2]
[318105571,1710078632791,-500.0,0.00022739,2]
[318105573,1710078632800,-500.0,0.00022739,2]
[318105574,1710078632809,-511.5850356,0.00022739,2]
[318105576,1710078632819,-420.00938652,0.00022739,2]
[318105578,1710078632828,-500.0,0.00022739,2]
[318105579,1710078632837,-500.0,0.00022739,2]
[318105581,1710078632847,-516.00811848,0.00022739,2]
[318105583,1710078632856,-500.0,0.00022739,2]
[318105585,1710078632866,-500.0,0.00022739,2]
[318105586,1710078632875,-500.0,0.00022739,2]
[318105588,1710078632887,-500.0,0.00022739,2]
[318105590,1710078632897,-500.0,0.00022739,2]
[318105591,1710078632906,-500.0,0.00022739,2]
[318105593,1710078632916,-500.0,0.00022739,2]
[318105595,1710078632926,-500.0,0.00022739,2]
[318105597,1710078632936,-500.0,0.00022739,2]
[318105598,1710078632949,-500.0,0.00022739,2]
[318105600,1710078632958,-500.0,0.00022739,2]
[318105602,1710078632968,-500.0,0.00022739,2]
[318105603,1710078632978,-500.0,0.00022739,2]
[318105605,1710078632989,-500.0,0.00022739,2]
[318105607,1710078633000,-500.0,0.00022739,2]
[318105609,1710078633009,-500.0,0.00022739,2]
[318105610,1710078633018,-500.0,0.00022739,2]
[318105612,1710078633027,-500.0,0.00022739,2]
[318105614,1710078633036,-500.0,0.00022739,2]
[318105615,1710078633045,-500.0,0.00022739,2]
[318105617,1710078633055,-500.0,0.00022739,2]
[318105626,1710078633143,-500.0,0.00022739,2]
[318105628,1710078633174,-500.0,0.00022739,2]
[318105629,1710078633183,-500.0,0.00022739,2]
[318105631,1710078633196,-500.0,0.00022739,2]
[318105633,1710078633205,-500.0,0.00022739,2]
[318105635,1710078633215,-500.0,0.00022739,2]
[318105636,1710078633225,-271.3813931,0.00022739,2]
[318105638,1710078633235,-500.0,0.00022739,2]
[318105640,1710078633246,-500.0,0.00022739,2]
[318105641,1710078633255,-500.0,0.00022739,2]
[318105643,1710078633264,-500.0,0.00022739,2]
[318105645,1710078633274,-204.41272195,0.00022739,2]
[318105647,1710078633284,-500.0,0.00022739,2]
[318105649,1710078633295,-500.0,0.00022739,2]
[318105652,1710078633304,-500.0,0.00022739,2]
[318105653,1710078633314,-500.0,0.00022739,2]
[318105655,1710078633324,-423.61688521,0.00022739,2]
[318105657,1710078633334,-500.0,0.00022739,2]
[318105659,1710078633344,-500.0,0.00022739,2]
[318105661,1710078633353,-500.0,0.00022739,2]
[318105663,1710078633363,-500.0,0.00022739,2]
[318105665,1710078633373,-500.0,0.00022739,2]
[318105667,1710078633382,-500.0,0.00022739,2]
[318105669,1710078633391,-500.0,0.00022739,2]
[318105671,1710078633401,-500.0,0.00022739,2]
[318105672,1710078633410,-500.0,0.00022739,2]
[318105673,1710078633420,-500.0,0.00022739,2]
[318105674,1710078633432,-235.14481489,0.00022739,2]
[318105675,1710078633444,-500.0,0.00022739,2]
[318105676,1710078633453,-500.0,0.00022739,2]
[318105677,1710078633463,-500.0,0.00022739,2]
[318105678,1710078633473,-500.0,0.00022739,2]
[318105679,1710078633482,-500.0,0.00022739,2]
[318105680,1710078633492,-500.0,0.00022739,2]
[318105681,1710078633502,-466.96464,0.00022739,2]
[318105682,1710078633512,-500.0,0.00022739,2]
[318105683,1710078633522,-355.66068189,0.00022739,2]
[318105684,1710078633538,-144.33931811,0.00022739,2]
[318105685,1710078633547,-500.0,0.00022739,2]
[318105686,1710078633556,-293.3248313,0.00022739,2]
[318105740,1710078638085,-500.0,0.00022636,2]
[318105741,1710078638095,-503.10566694,0.00022636,2]
[318105743,1710078638105,-500.0,0.00022636,2]
[318105744,1710078638115,-503.0802876,0.00022636,2]
[318105745,1710078638125,-500.0,0.00022636,2]
[318105746,1710078638135,-500.0,0.00022636,2]
[318105747,1710078638145,-316.56079003,0.00022636,2]
[318105748,1710078638155,-206.6751687,0.00022739,2]
[318105749,1710078638164,-177.61486067,0.00022739,2]
[318105750,1710078638292,-322.38513933,0.00022739,2]
[318105751,1710078638302,-500.0,0.00022739,2]
[318105752,1710078638311,-500.0,0.00022739,2]
[318105753,1710078638321,-500.0,0.00022739,2]
[318105754,1710078638330,-500.0,0.00022739,2]
[318105755,1710078638340,-500.0,0.00022739,2]
[318105756,1710078638349,-500.0,0.00022739,2]
[318105757,1710078638358,-500.0,0.00022739,2]
[318105758,1710078638367,-500.0,0.00022739,2]
[318105759,1710078638377,-500.0,0.00022739,2]
[318105760,1710078638386,-200.0,0.00022739,2]
[318105761,1710078638395,-500.0,0.00022739,2]
[318105762,1710078638405,-500.0,0.00022739,2]
[318105763,1710078638415,-500.0,0.00022739,2]
[318105764,1710078638424,-500.0,0.00022739,2]
[318105765,1710078638438,-500.0,0.00022739,2]
[318105766,1710078638449,-500.0,0.00022739,2]
[318105767,1710078638459,-500.0,0.00022739,2]
[318105768,1710078638468,-500.0,0.00022739,2]
[318105769,1710078638477,-604.44278853,0.00022739,2]
[318105770,1710078638487,-500.0,0.00022739,2]
[318105771,1710078638496,-500.0,0.00022739,2]
[318105772,1710078638505,-500.0,0.00022739,2]
[318105773,1710078638514,-500.0,0.00022739,2]
[318105774,1710078638524,-500.0,0.00022739,2]
[318105775,1710078638534,-452.11014661,0.00022739,2]
[318105776,1710078638543,-658.62,0.00022739,2]
[318105777,1710078638552,-658.62,0.00022739,2]
[318105778,1710078638562,-658.62,0.00022739,2]
[318105779,1710078638572,-658.62,0.00022739,2]
[318105780,1710078638582,-658.62,0.00022739,2]
[318105781,1710078638592,-658.62,0.00022739,2]
[318105782,1710078638601,-658.62,0.00022739,2]
[318105783,1710078638611,-658.62,0.00022739,2]
[318105784,1710078638621,-658.62,0.00022739,2]
[318105785,1710078638632,-658.62,0.00022739,2]
[318105786,1710078638646,-188.20878236,0.00022739,2]
[318105787,1710078638657,-220.83797876,0.00022739,2]
[318105788,1710078638667,-500.0,0.00022739,2]
[318105789,1710078638679,-500.0,0.00022739,2]
[318105790,1710078638689,-500.0,0.00022739,2]
[318105791,1710078638704,-500.0,0.00022739,2]
[318105792,1710078638715,-256.28754661,0.00022739,2]
[318105793,1710078638726,-500.0,0.00022739,2]
[318105794,1710078638736,-599.49013367,0.00022739,2]
[318105795,1710078638749,-411.37919769,0.00022739,2]
[318105796,1710078638760,-465.23574571,0.00022739,2]
[318105797,1710078638771,-1217.41,0.00022739,2]
[318105798,1710078638782,-1217.41,0.00022739,2]
[318105799,1710078638792,-1217.41,0.00022739,2]
[318105800,1710078638802,-1217.41,0.00022739,2]
[318105801,1710078638813,-1217.41,0.00022739,2]
[318105802,1710078638824,-1217.41,0.00022739,2]
[318105803,1710078638836,-500.0,0.00022739,2]
[318105804,1710078638847,-1217.41,0.00022739,2]
[318105805,1710078638858,-1217.41,0.00022739,2]
[318105806,1710078638868,-1217.41,0.00022739,2]
[318105807,1710078638879,-1217.41,0.00022739,2]
[318105808,1710078638889,-500.0,0.00022739,2]
[318105809,1710078638900,-500.0,0.00022739,2]
[318105810,1710078638910,-500.0,0.00022739,2]
[318105811,1710078638920,-500.0,0.00022739,2]
[318105812,1710078638930,-500.0,0.00022739,2]
[318105813,1710078638940,-500.0,0.00022739,2]
[318105814,1710078638953,-500.0,0.00022739,2]
[318105815,1710078638963,-500.0,0.00022739,2]
[318105816,1710078638973,-500.0,0.00022739,2]
[318105817,1710078638983,-518.89,0.00022739,2]
[318105818,1710078638994,-518.89,0.00022739,2]
[318105819,1710078639004,-518.89,0.00022739,2]
[318105820,1710078639013,-518.89,0.00022739,2]
[318105821,1710078639023,-518.89,0.00022739,2]
[318105822,1710078639032,-518.89,0.00022739,2]
[318105823,1710078639042,-518.89,0.00022739,2]
[318105824,1710078639052,-518.89,0.00022739,2]
[318105825,1710078639061,-518.89,0.00022739,2]
[318105826,1710078639070,-518.89,0.00022739,2]
[318105827,1710078639080,-500.0,0.00022739,2]
[318105828,1710078639089,-500.0,0.00022739,2]
[318105829,1710078639099,-500.0,0.00022739,2]
[318105830,1710078639108,-500.0,0.00022739,2]
[318105831,1710078639118,-500.0,0.00022739,2]
[318105832,1710078639128,-500.0,0.00022739,2]
[318105833,1710078639138,-500.0,0.00022739,2]
[318105834,1710078639149,-500.0,0.00022739,2]
[318105835,1710078639162,-500.0,0.00022739,2]
[318105836,1710078639174,-500.0,0.00022739,2]
[318105837,1710078639186,-410.10079927,0.00022739,2]
[318105838,1710078639203,-1300.24,0.00022739,2]
[318105839,1710078639214,-1300.24,0.00022739,2]
[318105840,1710078639226,-1300.24,0.00022739,2]
[318105841,1710078639237,-1300.24,0.00022739,2]
[318105842,1710078639249,-1300.24,0.00022739,2]
[318105843,1710078639264,-1300.24,0.00022739,2]
[318105844,1710078639275,-1300.24,0.00022739,2]
[318105845,1710078639286,-1300.24,0.00022739,2]
[318105846,1710078639297,-1300.24,0.00022739,2]
[318105847,1710078639308,-1300.24,0.00022739,2]
[318105848,1710078639318,-500.0,0.00022739,2]
[318105849,1710078639329,-500.0,0.00022739,2]
[318105850,1710078639340,-500.0,0.00022739,2]
[318105851,1710078639350,-500.0,0.00022739,2]
[318105852,1710078639361,-500.0,0.00022739,2]
[318105853,1710078639371,-500.0,0.00022739,2]
[318105854,1710078639382,-500.0,0.00022739,2]
[318105855,1710078639392,-309.59370049,0.00022739,2]
[318105856,1710078639404,-500.0,0.00022739,2]
[318105857,1710078639415,-500.0,0.00022739,2]
[318105858,1710078639426,-500.0,0.00022739,2]
[318105859,1710078639437,-500.0,0.00022739,2]
[318105860,1710078639453,-204.62137006,0.00022739,2]
[318105861,1710078639466,-500.0,0.00022739,2]
[318105862,1710078639478,-500.0,0.00022739,2]
[318105864,1710078639489,-500.0,0.00022739,2]
[318105865,1710078639500,-383.88704037,0.00022739,2]
[318105866,1710078639511,-500.0,0.00022739,2]
[318105867,1710078639522,-500.0,0.00022739,2]
[318105868,1710078639533,-500.0,0.00022739,2]
[318105869,1710078639544,-500.0,0.00022739,2]
[318105870,1710078639555,-500.0,0.00022739,2]
[318105871,1710078639566,-591.11851138,0.00022739,2]
[318105873,1710078639577,-500.0,0.00022739,2]
[318105874,1710078639588,-188.96654124,0.00022739,2]
[318105875,1710078639599,-500.0,0.00022739,2]
[318105876,1710078639611,-635.75747455,0.00022739,2]
[318105877,1710078639621,-500.0,0.00022739,2]
[318105878,1710078639631,-500.0,0.00022739,2]
[318105879,1710078639641,-500.0,0.00022739,2]
[318105880,1710078639652,-500.0,0.00022739,2]
[318105881,1710078639663,-500.0,0.00022739,2]
[318105882,1710078639674,-500.0,0.00022739,2]
[318105883,1710078639684,-509.60163973,0.00022739,2]
[318105884,1710078639694,-500.0,0.00022739,2]
[318105885,1710078639707,-500.0,0.00022739,2]
[318105886,1710078639717,-500.0,0.00022739,2]
[318105887,1710078639727,-500.0,0.00022739,2]
[318105888,1710078639737,-500.0,0.00022739,2]
[318105889,1710078639746,-500.0,0.00022739,2]
[318105890,1710078639756,-500.74217938,0.00022739,2]
[318105891,1710078639766,-500.0,0.00022739,2]
[318105893,1710078639776,-500.0,0.00022739,2]
[318105895,1710078639788,-184.7385173,0.00022739,2]
[318105897,1710078639797,-892.41,0.00022739,2]
[318105898,1710078639892,-892.41,0.00022739,2]
[318105899,1710078639904,-892.41,0.00022739,2]
[318105900,1710078639914,-892.41,0.00022739,2]
[318105901,1710078639924,-892.41,0.00022739,2]
[318105902,1710078639935,-892.41,0.00022739,2]
[318105903,1710078639945,-892.41,0.00022739,2]
[318105904,1710078639960,-892.41,0.00022739,2]
[318105905,1710078639970,-892.41,0.00022739,2]
[318105906,1710078639984,-892.41,0.00022739,2]
[318105907,1710078639995,-500.0,0.00022739,2]
[318105908,1710078640006,-500.0,0.00022739,2]
[318105909,1710078640017,-500.0,0.00022739,2]
[318105910,1710078640028,-500.0,0.00022739,2]
[318105911,1710078640040,-515.42353091,0.00022739,2]
[318105912,1710078640051,-500.0,0.00022739,2]